[Event "Early-Titled-Tuesday-Blitz-September-26-2023"]
[Site "Chess.com"]
[Date "2023.09.26"]
[Round "3"]
[White "Cambek64"]
[Black "NowInChess"]
[Result "1-0"]
[WhiteElo "2468"]
[BlackElo "2255"]
[TimeControl "180+1"]
[EndTime "8:26:31 PDT"]
[Termination "Cambek64 won on time"]

1. e4 {[%clk 0:02:59.3]} 1... e6 {[%clk 0:02:59.6]} 2. d3 {[%clk 0:02:58.9]}
2... d5 {[%clk 0:03:00.5]} 3. Qe2 {[%clk 0:02:59]} 3... Nf6 {[%clk 0:02:58.2]}
4. e5 {[%clk 0:02:58.6]} 4... Nfd7 {[%clk 0:02:57.4]} 5. f4 {[%clk 0:02:59.3]}
5... c5 {[%clk 0:02:57.5]} 6. Nf3 {[%clk 0:02:59.9]} 6... Nc6 {[%clk 0:02:57.6]}
7. g3 {[%clk 0:03:00.6]} 7... Be7 {[%clk 0:02:50.7]} 8. Bg2 {[%clk 0:03:00.8]}
8... O-O {[%clk 0:02:49.5]} 9. O-O {[%clk 0:03:01.4]} 9... a6 {[%clk 0:02:31.4]}
10. c4 {[%clk 0:02:59.4]} 10... d4 {[%clk 0:02:03.5]} 11. Nbd2 {[%clk
0:02:56.3]} 11... f5 {[%clk 0:01:49.7]} 12. exf6 {[%clk 0:02:55.5]} 12... Nxf6
{[%clk 0:01:49]} 13. Ne4 {[%clk 0:02:55.1]} 13... Nxe4 {[%clk 0:01:42.2]} 14.
Qxe4 {[%clk 0:02:52.7]} 14... Bf6 {[%clk 0:01:26]} 15. Bd2 {[%clk 0:02:52.2]}
15... Rb8 {[%clk 0:01:08.4]} 16. Rae1 {[%clk 0:02:51.9]} 16... Ne7 {[%clk
0:00:59.8]} 17. Ng5 {[%clk 0:02:44.2]} 17... Bxg5 {[%clk 0:00:53.7]} 18. fxg5
{[%clk 0:02:42.8]} 18... Rxf1+ {[%clk 0:00:35.5]} 19. Rxf1 {[%clk 0:02:41.6]}
19... b5 {[%clk 0:00:25.4]} 20. b3 {[%clk 0:02:38.6]} 20... bxc4 {[%clk
0:00:24.7]} 21. dxc4 {[%clk 0:02:36.4]} 21... Nf5 {[%clk 0:00:20.4]} 22. g4
{[%clk 0:02:24.9]} 22... Nh4 {[%clk 0:00:19.3]} 23. Qf4 {[%clk 0:02:24.7]} 23...
Bd7 {[%clk 0:00:14.8]} 24. Qf7+ {[%clk 0:02:21.1]} 24... Kh8 {[%clk 0:00:14.2]}
25. Be4 {[%clk 0:02:09.3]} 25... Qe8 {[%clk 0:00:13.8]} 26. Qf2 {[%clk
0:01:54.3]} 26... Ng6 {[%clk 0:00:09.4]} 27. h4 {[%clk 0:01:52.1]} 27... Qf8
{[%clk 0:00:05.9]} 28. Qg3 {[%clk 0:01:50.9]} 28... Qe8 {[%clk 0:00:02.8]} 29.
h5 {[%clk 0:01:51.3]} 29... Nf8 {[%clk 0:00:02.8]} 30. Bf4 {[%clk 0:01:50.6]}
30... Rc8 {[%clk 0:00:01.9]} 31. Be5 {[%clk 0:01:51]} 1-0

[Event "Early-Titled-Tuesday-Blitz-September-26-2023"]
[Site "Chess.com"]
[Date "2023.09.26"]
[Round "3"]
[White "LeoWin2012"]
[Black "Shockerlover"]
[Result "1-0"]
[WhiteElo "2337"]
[BlackElo "1991"]
[TimeControl "180+1"]
[EndTime "8:26:32 PDT"]
[Termination "LeoWin2012 won on time"]

1. d4 {[%clk 0:03:00.9]} 1... Nf6 {[%clk 0:02:58.4]} 2. c4 {[%clk 0:02:59.8]}
2... g6 {[%clk 0:02:54.7]} 3. Nc3 {[%clk 0:02:59.1]} 3... Bg7 {[%clk 0:02:54.8]}
4. e4 {[%clk 0:02:59]} 4... d6 {[%clk 0:02:53.4]} 5. Nf3 {[%clk 0:02:58.9]} 5...
O-O {[%clk 0:02:53]} 6. h3 {[%clk 0:02:58.9]} 6... Nc6 {[%clk 0:02:46]} 7. Be3
{[%clk 0:02:57.5]} 7... e5 {[%clk 0:02:45.6]} 8. d5 {[%clk 0:02:56.5]} 8... Ne7
{[%clk 0:02:45.1]} 9. Be2 {[%clk 0:02:56.5]} 9... Ne8 {[%clk 0:02:41.3]} 10. g4
{[%clk 0:02:56.2]} 10... a5 {[%clk 0:02:12.7]} 11. a3 {[%clk 0:02:46.8]} 11...
f5 {[%clk 0:01:53.7]} 12. gxf5 {[%clk 0:02:45.8]} 12... gxf5 {[%clk 0:01:53.6]}
13. exf5 {[%clk 0:02:46]} 13... Nxf5 {[%clk 0:01:52.5]} 14. Bg5 {[%clk
0:02:45.4]} 14... Qd7 {[%clk 0:01:38.9]} 15. Qd2 {[%clk 0:02:43.3]} 15... h6
{[%clk 0:01:27.9]} 16. Be3 {[%clk 0:02:37.4]} 16... Nxe3 {[%clk 0:01:24.6]} 17.
fxe3 {[%clk 0:02:36]} 17... e4 {[%clk 0:01:15.9]} 18. Nxe4 {[%clk 0:02:34.1]}
18... Qf5 {[%clk 0:01:10.1]} 19. Nc3 {[%clk 0:02:29.1]} 19... Nf6 {[%clk
0:00:58.6]} 20. Nd4 {[%clk 0:02:21.7]} 20... Qg6 {[%clk 0:00:48.9]} 21. O-O-O
{[%clk 0:02:19.6]} 21... Ne4 {[%clk 0:00:34.4]} 22. Qc2 {[%clk 0:02:18.7]} 22...
Bf5 {[%clk 0:00:16.8]} 23. Nxf5 {[%clk 0:02:16.1]} 23... Qxf5 {[%clk 0:00:14.9]}
24. Qxe4 {[%clk 0:02:14.5]} 24... Qf6 {[%clk 0:00:07.2]} 25. Qe6+ {[%clk
0:02:12.1]} 25... Qxe6 {[%clk 0:00:06.1]} 26. dxe6 {[%clk 0:02:13]} 26... Rae8
{[%clk 0:00:06.4]} 27. Bg4 {[%clk 0:02:12.5]} 27... Rf2 {[%clk 0:00:05.7]} 28.
Rhf1 {[%clk 0:02:11.1]} 28... Rg2 {[%clk 0:00:04.4]} 29. Rd2 {[%clk 0:02:03]}
29... Rxd2 {[%clk 0:00:02.6]} 30. Kxd2 {[%clk 0:02:03.9]} 30... c6 {[%clk
0:00:02]} 31. Rf7 {[%clk 0:02:00.7]} 31... b5 {[%clk 0:00:02.2]} 32. cxb5 {[%clk
0:02:00.1]} 32... cxb5 {[%clk 0:00:02.1]} 33. Nxb5 {[%clk 0:01:59.9]} 33... Bxb2
{[%clk 0:00:01.6]} 34. Nxd6 {[%clk 0:01:59.1]} 1-0

[Event "Early-Titled-Tuesday-Blitz-September-26-2023"]
[Site "Chess.com"]
[Date "2023.09.26"]
[Round "3"]
[White "bubeliang"]
[Black "KamlaPasand"]
[Result "1-0"]
[WhiteElo "2630"]
[BlackElo "2425"]
[TimeControl "180+1"]
[EndTime "8:26:41 PDT"]
[Termination "bubeliang won by resignation"]

1. e4 {[%clk 0:03:00.9]} 1... e5 {[%clk 0:03:00.2]} 2. Nc3 {[%clk 0:02:59.6]}
2... Nc6 {[%clk 0:03:00.6]} 3. Bc4 {[%clk 0:02:58.7]} 3... Nf6 {[%clk
0:02:59.5]} 4. d3 {[%clk 0:02:57.3]} 4... Bc5 {[%clk 0:02:54.3]} 5. Nf3 {[%clk
0:02:55.4]} 5... h6 {[%clk 0:02:53.3]} 6. O-O {[%clk 0:02:55.2]} 6... d6 {[%clk
0:02:53.1]} 7. h3 {[%clk 0:02:53.1]} 7... O-O {[%clk 0:02:53.1]} 8. Ne2 {[%clk
0:02:49.5]} 8... Ne7 {[%clk 0:02:47.6]} 9. c3 {[%clk 0:02:49.8]} 9... Ng6 {[%clk
0:02:47.1]} 10. b4 {[%clk 0:02:48.4]} 10... Bb6 {[%clk 0:02:46.9]} 11. a4 {[%clk
0:02:48.6]} 11... a6 {[%clk 0:02:45.9]} 12. a5 {[%clk 0:02:48.3]} 12... Ba7
{[%clk 0:02:45.8]} 13. Ng3 {[%clk 0:02:49]} 13... Be6 {[%clk 0:02:44.6]} 14.
Bxe6 {[%clk 0:02:40.9]} 14... fxe6 {[%clk 0:02:45.5]} 15. Qb3 {[%clk 0:02:41.4]}
15... Qd7 {[%clk 0:02:43.4]} 16. Be3 {[%clk 0:02:39.4]} 16... Bxe3 {[%clk
0:02:39.3]} 17. fxe3 {[%clk 0:02:40.3]} 17... Kh8 {[%clk 0:02:38.4]} 18. Kh2
{[%clk 0:02:38.6]} 18... Rf7 {[%clk 0:02:37.9]} 19. Rf2 {[%clk 0:02:35.2]} 19...
Raf8 {[%clk 0:02:38.3]} 20. Raf1 {[%clk 0:02:35.7]} 20... d5 {[%clk 0:02:37.6]}
21. exd5 {[%clk 0:02:28]} 21... exd5 {[%clk 0:02:37.3]} 22. Nd2 {[%clk
0:02:21.3]} 22... Ng4+ {[%clk 0:02:35.6]} 23. hxg4 {[%clk 0:02:13]} 23... Rxf2
{[%clk 0:02:35.4]} 24. Rxf2 {[%clk 0:02:05.8]} 24... Rxf2 {[%clk 0:02:36.3]} 25.
Nf3 {[%clk 0:02:04.5]} 25... Qxg4 {[%clk 0:02:24.8]} 26. Qxd5 {[%clk 0:01:55]}
26... Kh7 {[%clk 0:02:18.3]} 27. Qxb7 {[%clk 0:01:36.1]} 27... Nh4 {[%clk
0:02:09.4]} 28. Qe4+ {[%clk 0:01:35]} 28... Qxe4 {[%clk 0:02:09]} 29. Nxe4
{[%clk 0:01:35.9]} 29... Nxf3+ {[%clk 0:02:08.2]} 30. Kg3 {[%clk 0:01:36.4]}
30... Rd2 {[%clk 0:02:01.7]} 31. Nxd2 {[%clk 0:01:29.8]} 31... Nxd2 {[%clk
0:02:02]} 32. b5 {[%clk 0:01:30.4]} 32... e4 {[%clk 0:01:22.5]} 33. bxa6 {[%clk
0:01:19.8]} 33... exd3 {[%clk 0:01:22.4]} 34. a7 {[%clk 0:01:20.3]} 34... Ne4+
{[%clk 0:01:22.6]} 35. Kf3 {[%clk 0:01:07.4]} 35... Nxc3 {[%clk 0:01:18.7]} 36.
a8=Q {[%clk 0:01:07.7]} 36... d2 {[%clk 0:01:19.3]} 37. Qd8 {[%clk 0:01:07.4]}
37... d1=Q+ {[%clk 0:01:18.9]} 38. Qxd1 {[%clk 0:01:07.9]} 38... Nxd1 {[%clk
0:01:18.4]} 39. a6 {[%clk 0:01:08.4]} 39... c5 {[%clk 0:01:08.4]} 40. a7 {[%clk
0:01:07.1]} 40... c4 {[%clk 0:01:09.3]} 41. a8=Q {[%clk 0:01:08]} 41... c3
{[%clk 0:01:09.6]} 42. Qe4+ {[%clk 0:01:07.9]} 42... Kg8 {[%clk 0:01:08.4]} 43.
Qe8+ {[%clk 0:01:07.6]} 43... Kh7 {[%clk 0:01:08.3]} 44. Qe4+ {[%clk 0:01:08.5]}
44... Kg8 {[%clk 0:01:08.6]} 45. Qc2 {[%clk 0:01:09.1]} 45... Nb2 {[%clk
0:01:06.7]} 46. Qxc3 {[%clk 0:01:09.1]} 46... Nd1 {[%clk 0:01:07.3]} 47. Qb3+
{[%clk 0:01:09.3]} 1-0

[Event "Early-Titled-Tuesday-Blitz-September-26-2023"]
[Site "Chess.com"]
[Date "2023.09.26"]
[Round "3"]
[White "TERMINATOR_PC"]
[Black "Austen48"]
[Result "1-0"]
[WhiteElo "2552"]
[BlackElo "2311"]
[TimeControl "180+1"]
[EndTime "8:26:41 PDT"]
[Termination "TERMINATOR_PC won on time"]

1. e4 {[%clk 0:03:00.9]} 1... c5 {[%clk 0:02:59]} 2. Nf3 {[%clk 0:03:00.1]} 2...
e6 {[%clk 0:02:58.9]} 3. d4 {[%clk 0:02:59.9]} 3... cxd4 {[%clk 0:02:59.1]} 4.
Nxd4 {[%clk 0:03:00.8]} 4... a6 {[%clk 0:02:59.2]} 5. Bd3 {[%clk 0:02:59.1]}
5... Qc7 {[%clk 0:02:59]} 6. Qe2 {[%clk 0:02:50.6]} 6... d6 {[%clk 0:02:41.2]}
7. O-O {[%clk 0:02:50.3]} 7... g6 {[%clk 0:02:39.5]} 8. c4 {[%clk 0:02:49.8]}
8... Bg7 {[%clk 0:02:39]} 9. Be3 {[%clk 0:02:49.6]} 9... Ne7 {[%clk 0:02:31.9]}
10. Nc3 {[%clk 0:02:49.3]} 10... O-O {[%clk 0:02:31]} 11. Rac1 {[%clk
0:02:48.8]} 11... Nd7 {[%clk 0:02:30.7]} 12. Bb1 {[%clk 0:02:48.2]} 12... b6
{[%clk 0:02:30.2]} 13. b3 {[%clk 0:02:48.5]} 13... Bb7 {[%clk 0:02:30.1]} 14. f4
{[%clk 0:02:48.7]} 14... Rac8 {[%clk 0:02:22.7]} 15. Kh1 {[%clk 0:02:48]} 15...
Qb8 {[%clk 0:02:21.2]} 16. f5 {[%clk 0:02:37.3]} 16... exf5 {[%clk 0:02:14.5]}
17. exf5 {[%clk 0:02:36.3]} 17... Nc6 {[%clk 0:02:02.6]} 18. Qf2 {[%clk
0:02:25.9]} 18... Nxd4 {[%clk 0:01:47.8]} 19. Bxd4 {[%clk 0:02:25.8]} 19... Bh6
{[%clk 0:01:34.9]} 20. Rce1 {[%clk 0:02:22.2]} 20... Rce8 {[%clk 0:01:32]} 21.
Qh4 {[%clk 0:02:08.9]} 21... Bd2 {[%clk 0:01:25.9]} 22. Rd1 {[%clk 0:01:59.2]}
22... Bxc3 {[%clk 0:01:19.1]} 23. Bxc3 {[%clk 0:02:00.1]} 23... Re2 {[%clk
0:01:03.3]} 24. Rg1 {[%clk 0:01:49.4]} 24... Qa8 {[%clk 0:00:52.5]} 25. Qh3
{[%clk 0:01:48.7]} 25... Ne5 {[%clk 0:00:45.8]} 26. Rxd6 {[%clk 0:01:47.8]}
26... Bxg2+ {[%clk 0:00:38.7]} 27. Rxg2 {[%clk 0:01:46.3]} 27... Re8 {[%clk
0:00:19.9]} 28. Rd1 {[%clk 0:01:41.3]} 28... Rxg2 {[%clk 0:00:09.8]} 29. Qxg2
{[%clk 0:01:40.7]} 29... Nf3 {[%clk 0:00:09.2]} 30. fxg6 {[%clk 0:01:40.2]}
30... hxg6 {[%clk 0:00:08.4]} 31. Bxg6 {[%clk 0:01:40.1]} 31... Nh4 {[%clk
0:00:03.2]} 32. Be4+ {[%clk 0:01:34.5]} 1-0

[Event "Early-Titled-Tuesday-Blitz-September-26-2023"]
[Site "Chess.com"]
[Date "2023.09.26"]
[Round "3"]
[White "Iskusnyh"]
[Black "Lennis93"]
[Result "1-0"]
[WhiteElo "2581"]
[BlackElo "2717"]
[TimeControl "180+1"]
[EndTime "8:26:44 PDT"]
[Termination "Iskusnyh won by resignation"]

1. d4 {[%clk 0:03:00.9]} 1... Nf6 {[%clk 0:02:57.6]} 2. c4 {[%clk 0:03:00.6]}
2... e6 {[%clk 0:02:57.9]} 3. g3 {[%clk 0:03:00.1]} 3... d5 {[%clk 0:02:56.6]}
4. Bg2 {[%clk 0:02:59.5]} 4... dxc4 {[%clk 0:02:56.7]} 5. Nf3 {[%clk 0:02:58.7]}
5... Nc6 {[%clk 0:02:56.9]} 6. O-O {[%clk 0:02:57.6]} 6... a6 {[%clk 0:02:57.4]}
7. e3 {[%clk 0:02:57.4]} 7... Rb8 {[%clk 0:02:56.8]} 8. Qe2 {[%clk 0:02:55.1]}
8... b5 {[%clk 0:02:54.4]} 9. b3 {[%clk 0:02:55.1]} 9... cxb3 {[%clk 0:02:50.9]}
10. axb3 {[%clk 0:02:56]} 10... Bd6 {[%clk 0:02:48.8]} 11. Bb2 {[%clk
0:02:53.5]} 11... Qe7 {[%clk 0:02:48.1]} 12. Rc1 {[%clk 0:02:34.5]} 12... Nb4
{[%clk 0:02:46.3]} 13. Ne5 {[%clk 0:02:27.8]} 13... Bxe5 {[%clk 0:02:45.8]} 14.
dxe5 {[%clk 0:02:26.2]} 14... Nfd5 {[%clk 0:02:45.6]} 15. Bd4 {[%clk 0:02:24.7]}
15... Bb7 {[%clk 0:02:44.4]} 16. Bc5 {[%clk 0:02:23.1]} 16... Qg5 {[%clk
0:02:43.6]} 17. f4 {[%clk 0:02:17.8]} 17... Qh6 {[%clk 0:02:28.1]} 18. e4 {[%clk
0:02:16.8]} 18... Nxf4 {[%clk 0:02:25.2]} 19. gxf4 {[%clk 0:02:10.5]} 19... Qxf4
{[%clk 0:02:26.1]} 20. Nd2 {[%clk 0:01:52.8]} 20... Nc6 {[%clk 0:02:22.2]} 21.
Nf3 {[%clk 0:01:50.4]} 21... Nxe5 {[%clk 0:02:20.8]} 22. Nxe5 {[%clk 0:01:49.6]}
22... Qxe5 {[%clk 0:02:21.7]} 23. b4 {[%clk 0:01:47]} 23... f6 {[%clk
0:02:20.9]} 24. Rd1 {[%clk 0:01:43.8]} 24... h5 {[%clk 0:02:14.9]} 25. Rac1
{[%clk 0:01:39.7]} 25... h4 {[%clk 0:02:14.4]} 26. h3 {[%clk 0:01:37.6]} 26...
Rh5 {[%clk 0:02:08.3]} 27. Bd4 {[%clk 0:01:35.3]} 27... Qg5 {[%clk 0:02:06.3]}
28. Rc5 {[%clk 0:01:34.5]} 28... e5 {[%clk 0:02:04.7]} 29. Be3 {[%clk
0:01:34.1]} 29... Qg6 {[%clk 0:02:03.2]} 30. Bc1 {[%clk 0:01:10.2]} 30... Rc8
{[%clk 0:01:39.4]} 31. Kh1 {[%clk 0:01:09.1]} 31... Kf8 {[%clk 0:01:36.9]} 32.
Rd7 {[%clk 0:01:06.6]} 32... Qe8 {[%clk 0:01:26.5]} 33. Rdxc7 {[%clk 0:00:55]}
33... Rxc7 {[%clk 0:01:21.3]} 34. Rxc7 {[%clk 0:00:55.9]} 34... Ba8 {[%clk
0:01:21.6]} 35. Qc2 {[%clk 0:00:51.2]} 35... Bxe4 {[%clk 0:00:59.5]} 36. Bxe4
{[%clk 0:00:48.3]} 1-0

[Event "Early-Titled-Tuesday-Blitz-September-26-2023"]
[Site "Chess.com"]
[Date "2023.09.26"]
[Round "3"]
[White "jasonbolivar"]
[Black "amylazy"]
[Result "0-1"]
[WhiteElo "2259"]
[BlackElo "2436"]
[TimeControl "180+1"]
[EndTime "8:26:52 PDT"]
[Termination "amylazy won on time"]

1. e4 {[%clk 0:01:42.5]} 1... c5 {[%clk 0:02:55.7]} 2. Nc3 {[%clk 0:01:42.1]}
2... g6 {[%clk 0:02:55]} 3. g4 {[%clk 0:01:42.5]} 3... Bg7 {[%clk 0:02:55]} 4.
Bg2 {[%clk 0:01:43.1]} 4... Nc6 {[%clk 0:02:54.6]} 5. d3 {[%clk 0:01:43.7]} 5...
e6 {[%clk 0:02:54.7]} 6. Nh3 {[%clk 0:01:43.6]} 6... Nge7 {[%clk 0:02:55.1]} 7.
O-O {[%clk 0:01:43.7]} 7... d5 {[%clk 0:02:55.4]} 8. f4 {[%clk 0:01:43.4]} 8...
dxe4 {[%clk 0:02:55]} 9. Nxe4 {[%clk 0:01:42.9]} 9... O-O {[%clk 0:02:52.9]} 10.
g5 {[%clk 0:01:38.2]} 10... Nf5 {[%clk 0:02:52.8]} 11. Nhf2 {[%clk 0:01:37.1]}
11... Ncd4 {[%clk 0:02:51.9]} 12. Nxc5 {[%clk 0:01:29.5]} 12... Qb6 {[%clk
0:02:47.2]} 13. Nce4 {[%clk 0:01:28.7]} 13... Bd7 {[%clk 0:02:26.5]} 14. c3
{[%clk 0:01:28.8]} 14... Nb5 {[%clk 0:02:23.6]} 15. d4 {[%clk 0:01:27.9]} 15...
Bc6 {[%clk 0:02:23]} 16. Ng4 {[%clk 0:01:18.4]} 16... Bxe4 {[%clk 0:02:21.6]}
17. Bxe4 {[%clk 0:01:18.4]} 17... Rad8 {[%clk 0:02:18]} 18. Bxf5 {[%clk
0:01:00.6]} 18... exf5 {[%clk 0:02:17.6]} 19. Ne5 {[%clk 0:01:00.1]} 19... Rfe8
{[%clk 0:01:46.7]} 20. Qf3 {[%clk 0:00:56.9]} 20... Bxe5 {[%clk 0:01:44]} 21.
fxe5 {[%clk 0:00:56.1]} 21... Rxe5 {[%clk 0:01:44]} 22. Kh1 {[%clk 0:00:45.2]}
22... Re4 {[%clk 0:01:43.7]} 23. Bf4 {[%clk 0:00:42.5]} 23... Rde8 {[%clk
0:01:43.2]} 24. Be5 {[%clk 0:00:38.5]} 24... Qc6 {[%clk 0:01:40.5]} 25. Kg1
{[%clk 0:00:27.5]} 25... Nd6 {[%clk 0:01:37.3]} 26. Qh3 {[%clk 0:00:07.1]} 26...
R8xe5 {[%clk 0:01:29]} 27. dxe5 {[%clk 0:00:06.8]} 27... Rg4+ {[%clk 0:01:29.6]}
28. Kf2 {[%clk 0:00:06.8]} 28... Ne4+ {[%clk 0:01:28.9]} 29. Ke2 {[%clk
0:00:01.5]} 29... Qb5+ {[%clk 0:01:22.8]} 0-1

[Event "Early-Titled-Tuesday-Blitz-September-26-2023"]
[Site "Chess.com"]
[Date "2023.09.26"]
[Round "3"]
[White "attack2mateU"]
[Black "newyorkmouse"]
[Result "1-0"]
[WhiteElo "2743"]
[BlackElo "2494"]
[TimeControl "180+1"]
[EndTime "8:26:54 PDT"]
[Termination "attack2mateU won on time"]

1. e4 {[%clk 0:02:59.7]} 1... c6 {[%clk 0:02:55.1]} 2. Nc3 {[%clk 0:02:58.3]}
2... g6 {[%clk 0:02:46.6]} 3. d4 {[%clk 0:02:57.5]} 3... Bg7 {[%clk 0:02:39.4]}
4. Be3 {[%clk 0:02:56.8]} 4... d5 {[%clk 0:02:33]} 5. e5 {[%clk 0:02:56.5]} 5...
h5 {[%clk 0:02:31.6]} 6. Qd2 {[%clk 0:02:40.4]} 6... Nh6 {[%clk 0:02:30.3]} 7.
O-O-O {[%clk 0:02:31.9]} 7... Nf5 {[%clk 0:02:29.2]} 8. Bf4 {[%clk 0:02:25.4]}
8... Qa5 {[%clk 0:02:12.1]} 9. Nf3 {[%clk 0:02:23.6]} 9... b5 {[%clk 0:02:08.6]}
10. Kb1 {[%clk 0:02:22.9]} 10... Na6 {[%clk 0:02:05.1]} 11. Bd3 {[%clk
0:02:10.5]} 11... Nb4 {[%clk 0:01:56]} 12. Be2 {[%clk 0:02:07.6]} 12... Bd7
{[%clk 0:01:38]} 13. h3 {[%clk 0:02:07.1]} 13... Na6 {[%clk 0:01:27]} 14. Bd3
{[%clk 0:01:50.3]} 14... Nb4 {[%clk 0:01:23]} 15. Be2 {[%clk 0:01:00.4]} 15...
Na6 {[%clk 0:01:16.4]} 16. Rde1 {[%clk 0:00:58.9]} 16... Nc7 {[%clk 0:00:43.8]}
17. g4 {[%clk 0:00:57.7]} 17... Nh6 {[%clk 0:00:42.8]} 18. gxh5 {[%clk
0:00:56.5]} 18... gxh5 {[%clk 0:00:43.7]} 19. Rhg1 {[%clk 0:00:56.1]} 19... Nf5
{[%clk 0:00:39.9]} 20. Nxd5 {[%clk 0:00:53.7]} 1-0

[Event "Early-Titled-Tuesday-Blitz-September-26-2023"]
[Site "Chess.com"]
[Date "2023.09.26"]
[Round "3"]
[White "GoltsevDmitry2000"]
[Black "MasterKroket"]
[Result "1/2-1/2"]
[WhiteElo "2611"]
[BlackElo "2422"]
[TimeControl "180+1"]
[EndTime "8:26:55 PDT"]
[Termination "Game drawn by agreement"]

1. e4 {[%clk 0:02:53.2]} 1... e5 {[%clk 0:02:59]} 2. Nf3 {[%clk 0:02:53.7]} 2...
Nc6 {[%clk 0:02:58.6]} 3. Bb5 {[%clk 0:02:54.2]} 3... a6 {[%clk 0:02:58.5]} 4.
Ba4 {[%clk 0:02:54.4]} 4... Nf6 {[%clk 0:02:58.8]} 5. O-O {[%clk 0:02:54.7]}
5... Be7 {[%clk 0:02:59.4]} 6. Re1 {[%clk 0:02:54.9]} 6... b5 {[%clk 0:02:59.9]}
7. Bb3 {[%clk 0:02:55.3]} 7... O-O {[%clk 0:03:00.3]} 8. c3 {[%clk 0:02:56.2]}
8... d6 {[%clk 0:02:58.4]} 9. d4 {[%clk 0:02:57.1]} 9... Bg4 {[%clk 0:02:56]}
10. d5 {[%clk 0:02:57]} 10... Nb8 {[%clk 0:02:51.5]} 11. h3 {[%clk 0:02:56.9]}
11... Bh5 {[%clk 0:02:49.4]} 12. Bg5 {[%clk 0:02:56.9]} 12... Nbd7 {[%clk
0:02:48.6]} 13. Nbd2 {[%clk 0:02:57.3]} 13... Ne8 {[%clk 0:02:35.9]} 14. Be3
{[%clk 0:02:56]} 14... Bg6 {[%clk 0:02:32.3]} 15. Bc2 {[%clk 0:02:55.6]} 15...
c5 {[%clk 0:02:26.9]} 16. dxc6 {[%clk 0:02:54.4]} 16... Nb8 {[%clk 0:02:27.1]}
17. a4 {[%clk 0:02:53.4]} 17... Nxc6 {[%clk 0:02:26.3]} 18. Qe2 {[%clk
0:02:52.1]} 18... b4 {[%clk 0:02:21.8]} 19. Nc4 {[%clk 0:02:49.3]} 19... Rb8
{[%clk 0:02:16]} 20. Red1 {[%clk 0:02:49.4]} 20... Qc7 {[%clk 0:02:11.1]} 21. a5
{[%clk 0:02:47.9]} 21... bxc3 {[%clk 0:02:09.7]} 22. bxc3 {[%clk 0:02:48.8]}
22... f6 {[%clk 0:01:53.8]} 23. Bb6 {[%clk 0:02:48.3]} 23... Qc8 {[%clk
0:01:47.5]} 24. Nh4 {[%clk 0:02:48.1]} 24... Bf7 {[%clk 0:01:47.7]} 25. Nf5
{[%clk 0:02:48]} 25... Be6 {[%clk 0:01:15.4]} 26. Ncxd6 {[%clk 0:02:45.2]} 26...
Nxd6 {[%clk 0:01:10.2]} 27. Nxd6 {[%clk 0:02:46.1]} 27... Bxd6 {[%clk
0:01:00.2]} 28. Rxd6 {[%clk 0:02:47]} 28... Ne7 {[%clk 0:00:48.9]} 29. Bd3
{[%clk 0:02:44.8]} 29... Qxc3 {[%clk 0:00:45.4]} 30. Rd1 {[%clk 0:02:44.2]}
30... Bb3 {[%clk 0:00:43.7]} 31. Rb1 {[%clk 0:02:43.1]} 31... Bf7 {[%clk
0:00:27.8]} 32. Bxa6 {[%clk 0:02:42.4]} 32... Ng6 {[%clk 0:00:26.6]} 33. Qd3
{[%clk 0:02:38.5]} 33... Qxd3 {[%clk 0:00:25.3]} 34. Bxd3 {[%clk 0:02:39.4]}
34... Nf4 {[%clk 0:00:26]} 35. Kf1 {[%clk 0:02:39]} 35... Nxd3 {[%clk
0:00:21.6]} 36. Rxd3 {[%clk 0:02:39.2]} 36... Bc4 {[%clk 0:00:21.9]} 37. Rd1
{[%clk 0:02:38.9]} 37... Rfc8 {[%clk 0:00:15.2]} 38. Ke1 {[%clk 0:02:36.2]}
38... Bxd3 {[%clk 0:00:15.3]} 39. Rxd3 {[%clk 0:02:37.1]} 39... Rc1+ {[%clk
0:00:15.5]} 40. Kd2 {[%clk 0:02:37.3]} 40... Ra1 {[%clk 0:00:15.4]} 41. Rd7
{[%clk 0:02:37.2]} 41... Ra8 {[%clk 0:00:14.7]} 42. Ke3 {[%clk 0:02:32.2]} 42...
h5 {[%clk 0:00:13.6]} 43. Kf3 {[%clk 0:02:32.2]} 43... R1xa5 {[%clk 0:00:13.3]}
44. Bxa5 {[%clk 0:02:33.1]} 44... Rxa5 {[%clk 0:00:13.8]} 45. Kg3 {[%clk
0:02:33.1]} 45... Kh7 {[%clk 0:00:14.2]} 46. Kh4 {[%clk 0:02:32.6]} 46... Kg6
{[%clk 0:00:14.8]} 47. f3 {[%clk 0:02:32]} 47... Ra2 {[%clk 0:00:14.4]} 48. Kg3
{[%clk 0:02:32.4]} 48... Ra3 {[%clk 0:00:14.3]} 49. h4 {[%clk 0:02:32.7]} 49...
Rb3 {[%clk 0:00:14.2]} 50. Ra7 {[%clk 0:02:32.3]} 50... Rc3 {[%clk 0:00:14.4]}
51. Rb7 {[%clk 0:02:32.4]} 51... Rd3 {[%clk 0:00:14.6]} 52. Rc7 {[%clk
0:02:32.6]} 52... Rb3 {[%clk 0:00:14.6]} 53. Kf2 {[%clk 0:02:32.5]} 53... Ra3
{[%clk 0:00:14.8]} 54. Rc2 {[%clk 0:02:32.8]} 54... Rb3 {[%clk 0:00:15.1]} 55.
Ra2 {[%clk 0:02:32.4]} 55... Rc3 {[%clk 0:00:15.4]} 56. Re2 {[%clk 0:02:32.9]}
56... Rb3 {[%clk 0:00:15.6]} 57. Re3 {[%clk 0:02:33.8]} 57... Rb2+ {[%clk
0:00:15.9]} 58. Re2 {[%clk 0:02:34.1]} 58... Rb3 {[%clk 0:00:16.1]} 59. g3
{[%clk 0:02:34.3]} 59... Ra3 {[%clk 0:00:16.1]} 60. Re3 {[%clk 0:02:34.8]} 60...
Ra2+ {[%clk 0:00:16]} 61. Re2 {[%clk 0:02:35.3]} 61... Ra3 {[%clk 0:00:16.2]}
62. Rd2 {[%clk 0:02:35.6]} 62... Rb3 {[%clk 0:00:16.3]} 63. Ke2 {[%clk 0:02:36]}
63... Ra3 {[%clk 0:00:16.4]} 64. Rd3 {[%clk 0:02:35.6]} 64... Ra2+ {[%clk
0:00:16.9]} 65. Rd2 {[%clk 0:02:33.9]} 65... Ra3 {[%clk 0:00:17.2]} 1/2-1/2